[Event "Early-Titled-Tuesday-Blitz-June-18-2024"]
[Site "Chess.com"]
[Date "2024.06.18"]
[Round "5"]
[White "Angry_Twin"]
[Black "Msb2"]
[Result "0-1"]
[WhiteElo "2918"]
[BlackElo "3064"]
[TimeControl "180+1"]
[EndTime "8:58:05 PDT"]
[Termination "Msb2 won by checkmate"]

1. d4 {[%clk 0:03:00.9]} 1... d5 {[%clk 0:03:00.2]} 2. c4 {[%clk 0:03:00.9]}
2... e6 {[%clk 0:03:00.9]} 3. Nc3 {[%clk 0:02:58.9]} 3... Bb4 {[%clk 0:03:01.1]}
4. a3 {[%clk 0:02:54.6]} 4... Bxc3+ {[%clk 0:03:01.2]} 5. bxc3 {[%clk
0:02:55.2]} 5... Nf6 {[%clk 0:03:02.1]} 6. e3 {[%clk 0:02:53.8]} 6... c6 {[%clk
0:03:02]} 7. Nf3 {[%clk 0:02:40.2]} 7... O-O {[%clk 0:03:01.1]} 8. Bd3 {[%clk
0:02:34.8]} 8... b6 {[%clk 0:03:00.3]} 9. cxd5 {[%clk 0:02:32.8]} 9... cxd5
{[%clk 0:03:01.2]} 10. Qe2 {[%clk 0:02:33]} 10... Ne4 {[%clk 0:02:59.9]} 11. Bb2
{[%clk 0:02:30.6]} 11... Nc6 {[%clk 0:02:53]} 12. c4 {[%clk 0:02:29.4]} 12...
Na5 {[%clk 0:02:51.9]} 13. cxd5 {[%clk 0:02:29.6]} 13... exd5 {[%clk 0:02:45.5]}
14. O-O {[%clk 0:02:26.6]} 14... Bg4 {[%clk 0:02:44]} 15. h3 {[%clk 0:02:25.5]}
15... Bh5 {[%clk 0:02:39.3]} 16. g4 {[%clk 0:02:08.1]} 16... Bg6 {[%clk
0:02:37.8]} 17. Ne5 {[%clk 0:02:06.5]} 17... Qh4 {[%clk 0:02:29.5]} 18. Kg2
{[%clk 0:02:03.5]} 18... Ng5 {[%clk 0:01:48.1]} 19. Rh1 {[%clk 0:02:01.8]} 19...
Bxd3 {[%clk 0:01:48.4]} 20. Qxd3 {[%clk 0:02:01.4]} 20... f5 {[%clk 0:01:46.1]}
21. f3 {[%clk 0:01:53.8]} 21... Nc4 {[%clk 0:01:25]} 22. Nxc4 {[%clk 0:01:40.7]}
22... dxc4 {[%clk 0:01:25.9]} 23. Qxc4+ {[%clk 0:01:38.4]} 23... Kh8 {[%clk
0:01:26.4]} 24. Qe2 {[%clk 0:00:45.6]} 24... Nxf3 {[%clk 0:01:06.2]} 25. Qxf3
{[%clk 0:00:41.9]} 25... fxg4 {[%clk 0:01:06.6]} 26. Qg3 {[%clk 0:00:38.3]}
26... gxh3+ {[%clk 0:01:04.2]} 27. Rxh3 {[%clk 0:00:36.8]} 27... Qe4+ {[%clk
0:01:04.5]} 28. Kg1 {[%clk 0:00:33.3]} 28... Rf6 {[%clk 0:01:02.7]} 29. Rh4
{[%clk 0:00:31.5]} 29... Qc2 {[%clk 0:01:01.8]} 30. Rh2 {[%clk 0:00:31]} 30...
Qd3 {[%clk 0:00:52.3]} 31. Rg2 {[%clk 0:00:24.9]} 31... Rg6 {[%clk 0:00:46.9]}
32. Qf4 {[%clk 0:00:21]} 32... Qc2 {[%clk 0:00:28.2]} 33. Rxg6 {[%clk
0:00:20.1]} 33... Qxg6+ {[%clk 0:00:29.1]} 34. Kh1 {[%clk 0:00:18.4]} 34... Qh5+
{[%clk 0:00:23.8]} 35. Kg2 {[%clk 0:00:14.8]} 35... Rc8 {[%clk 0:00:15.8]} 36.
Rf1 {[%clk 0:00:14]} 36... h6 {[%clk 0:00:13.6]} 37. Rf2 {[%clk 0:00:12.8]}
37... Rc6 {[%clk 0:00:12.4]} 38. Qf8+ {[%clk 0:00:10.5]} 38... Kh7 {[%clk
0:00:11.7]} 39. Qf5+ {[%clk 0:00:11.4]} 39... Rg6+ {[%clk 0:00:12.4]} 40. Kf1
{[%clk 0:00:09.8]} 40... Qd1# {[%clk 0:00:12.3]} 0-1

[Event "Early-Titled-Tuesday-Blitz-June-18-2024"]
[Site "Chess.com"]
[Date "2024.06.18"]
[Round "5"]
[White "Fh2411"]
[Black "Hirna2005"]
[Result "1-0"]
[WhiteElo "2559"]
[BlackElo "2301"]
[TimeControl "180+1"]
[EndTime "8:58:07 PDT"]
[Termination "Fh2411 won on time"]

1. d4 {[%clk 0:03:00.9]} 1... g6 {[%clk 0:03:00.5]} 2. c4 {[%clk 0:02:56.8]}
2... Bg7 {[%clk 0:03:00.9]} 3. Nc3 {[%clk 0:02:56.1]} 3... d6 {[%clk 0:03:01.4]}
4. Bg5 {[%clk 0:02:53.7]} 4... Nd7 {[%clk 0:02:50.7]} 5. e3 {[%clk 0:02:47.5]}
5... c5 {[%clk 0:02:49.9]} 6. Nf3 {[%clk 0:02:41.7]} 6... Ngf6 {[%clk
0:02:48.4]} 7. h3 {[%clk 0:02:37.8]} 7... O-O {[%clk 0:02:46.7]} 8. Be2 {[%clk
0:02:37.9]} 8... b6 {[%clk 0:02:41.3]} 9. O-O {[%clk 0:02:37.7]} 9... Bb7 {[%clk
0:02:41.4]} 10. d5 {[%clk 0:02:31.6]} 10... a6 {[%clk 0:02:40.7]} 11. a4 {[%clk
0:02:31.2]} 11... Re8 {[%clk 0:02:39.6]} 12. Bh4 {[%clk 0:02:26.6]} 12... Qc7
{[%clk 0:02:37]} 13. Re1 {[%clk 0:02:19.8]} 13... e6 {[%clk 0:02:36.7]} 14. dxe6
{[%clk 0:02:16.9]} 14... fxe6 {[%clk 0:02:34.8]} 15. Bg3 {[%clk 0:02:15.6]}
15... Bf8 {[%clk 0:02:19]} 16. Nd2 {[%clk 0:02:10.4]} 16... Rad8 {[%clk
0:02:06.9]} 17. Bf3 {[%clk 0:01:57.6]} 17... Nb8 {[%clk 0:02:05.3]} 18. Nde4
{[%clk 0:01:50]} 18... Nxe4 {[%clk 0:02:03.8]} 19. Nxe4 {[%clk 0:01:47.2]} 19...
Bxe4 {[%clk 0:01:58.9]} 20. Bxe4 {[%clk 0:01:47.4]} 20... Nc6 {[%clk 0:01:57.4]}
21. Qf3 {[%clk 0:01:42.3]} 21... Nb4 {[%clk 0:01:52.3]} 22. Red1 {[%clk
0:01:41.6]} 22... Bg7 {[%clk 0:01:50]} 23. Rab1 {[%clk 0:01:37.9]} 23... Rf8
{[%clk 0:01:43.5]} 24. Qg4 {[%clk 0:01:36.6]} 24... Qe7 {[%clk 0:01:37.3]} 25.
f4 {[%clk 0:01:28]} 25... d5 {[%clk 0:01:36.9]} 26. Bf3 {[%clk 0:01:05.4]} 26...
dxc4 {[%clk 0:01:27]} 27. h4 {[%clk 0:01:05.2]} 27... Nd3 {[%clk 0:01:20.7]} 28.
h5 {[%clk 0:01:03.2]} 28... gxh5 {[%clk 0:01:17.6]} 29. Qxh5 {[%clk 0:01:03.1]}
29... Nxb2 {[%clk 0:01:16.2]} 30. Rxd8 {[%clk 0:01:02]} 30... Rxd8 {[%clk
0:01:05.1]} 31. Bh4 {[%clk 0:00:34]} 31... Qd7 {[%clk 0:00:45.7]} 32. Bxd8
{[%clk 0:00:29.8]} 32... Qxd8 {[%clk 0:00:45.8]} 33. Be4 {[%clk 0:00:30.5]}
33... h6 {[%clk 0:00:42.6]} 34. Qg6 {[%clk 0:00:29.7]} 34... Qd6 {[%clk
0:00:36.3]} 35. Qe8+ {[%clk 0:00:27.3]} 35... Bf8 {[%clk 0:00:34.5]} 36. Rf1
{[%clk 0:00:26.5]} 36... Nd3 {[%clk 0:00:28.2]} 37. f5 {[%clk 0:00:26.6]} 37...
exf5 {[%clk 0:00:10.5]} 38. Rxf5 {[%clk 0:00:23.7]} 38... Qe7 {[%clk 0:00:02]}
39. Bd5+ {[%clk 0:00:20.6]} 39... Kg7 {[%clk 0:00:01]} 40. Rf7+ {[%clk
0:00:20.7]} 1-0

[Event "Early-Titled-Tuesday-Blitz-June-18-2024"]
[Site "Chess.com"]
[Date "2024.06.18"]
[Round "5"]
[White "becemix"]
[Black "sanbruh"]
[Result "0-1"]
[WhiteElo "2611"]
[BlackElo "2466"]
[TimeControl "180+1"]
[EndTime "8:58:10 PDT"]
[Termination "sanbruh won by resignation"]

1. e4 {[%clk 0:02:55.3]} 1... c5 {[%clk 0:02:59.7]} 2. c3 {[%clk 0:02:54.7]}
2... Nf6 {[%clk 0:02:58.8]} 3. e5 {[%clk 0:02:54.9]} 3... Nd5 {[%clk 0:02:59.4]}
4. d4 {[%clk 0:02:55.3]} 4... cxd4 {[%clk 0:03:00.1]} 5. cxd4 {[%clk 0:02:56]}
5... e6 {[%clk 0:03:00.5]} 6. f4 {[%clk 0:02:56.5]} 6... Nc6 {[%clk 0:03:00.8]}
7. Nc3 {[%clk 0:02:57.1]} 7... d6 {[%clk 0:03:01.1]} 8. Nf3 {[%clk 0:02:48.3]}
8... Be7 {[%clk 0:02:58.9]} 9. Bd3 {[%clk 0:02:46.3]} 9... O-O {[%clk
0:02:40.6]} 10. O-O {[%clk 0:02:43]} 10... b6 {[%clk 0:02:27.8]} 11. Nxd5 {[%clk
0:02:39.8]} 11... exd5 {[%clk 0:02:27.4]} 12. h3 {[%clk 0:02:26]} 12... h6
{[%clk 0:02:13.9]} 13. a3 {[%clk 0:02:22.9]} 13... dxe5 {[%clk 0:02:00.1]} 14.
fxe5 {[%clk 0:02:22.2]} 14... Be6 {[%clk 0:01:46.4]} 15. Bf4 {[%clk 0:02:21.2]}
15... Rc8 {[%clk 0:01:43]} 16. b4 {[%clk 0:02:13]} 16... a5 {[%clk 0:01:36]} 17.
b5 {[%clk 0:02:08.9]} 17... Nb8 {[%clk 0:01:31.8]} 18. Qd2 {[%clk 0:02:09.2]}
18... g5 {[%clk 0:01:02.1]} 19. Be3 {[%clk 0:01:56]} 19... f5 {[%clk 0:00:57.7]}
20. exf6 {[%clk 0:01:53.3]} 20... Bxf6 {[%clk 0:00:51.5]} 21. h4 {[%clk
0:01:53.3]} 21... g4 {[%clk 0:00:36.1]} 22. Ne5 {[%clk 0:01:50.3]} 22... Bxe5
{[%clk 0:00:33.6]} 23. dxe5 {[%clk 0:01:49.6]} 23... Qxh4 {[%clk 0:00:32.1]} 24.
Bxh6 {[%clk 0:01:42.2]} 24... g3 {[%clk 0:00:27.4]} 25. Qg5+ {[%clk 0:01:42.1]}
25... Qxg5 {[%clk 0:00:26.3]} 26. Bxg5 {[%clk 0:01:43]} 26... Rxf1+ {[%clk
0:00:21.9]} 27. Rxf1 {[%clk 0:01:39]} 27... Rc3 {[%clk 0:00:22.4]} 28. Bg6
{[%clk 0:01:38.4]} 28... Nd7 {[%clk 0:00:22.1]} 29. Rc1 {[%clk 0:01:05.8]} 29...
Rxc1+ {[%clk 0:00:20.8]} 30. Bxc1 {[%clk 0:01:06.7]} 30... Nxe5 {[%clk
0:00:21.2]} 31. Bc2 {[%clk 0:01:00.8]} 31... d4 {[%clk 0:00:21.3]} 32. Bf4
{[%clk 0:00:59.9]} 32... d3 {[%clk 0:00:19.6]} 33. Bd1 {[%clk 0:00:59.9]} 33...
Nc4 {[%clk 0:00:18.1]} 34. Bb3 {[%clk 0:00:57.3]} 34... Kf7 {[%clk 0:00:17.2]}
35. Bxg3 {[%clk 0:00:55.9]} 35... Nxa3 {[%clk 0:00:16.2]} 36. Ba4 {[%clk
0:00:50.9]} 36... Bc4 {[%clk 0:00:15.3]} 37. Bc7 {[%clk 0:00:46.8]} 37... Bxb5
{[%clk 0:00:15.9]} 38. Bb3+ {[%clk 0:00:38.5]} 38... Ke7 {[%clk 0:00:14.5]} 39.
Bxb6 {[%clk 0:00:38.2]} 39... Nc4 {[%clk 0:00:12.2]} 40. Kf2 {[%clk 0:00:35.3]}
40... Nxb6 {[%clk 0:00:11.1]} 41. Ke3 {[%clk 0:00:34.5]} 41... Kd6 {[%clk
0:00:11.1]} 42. g3 {[%clk 0:00:34.2]} 42... a4 {[%clk 0:00:11.2]} 43. Ba2 {[%clk
0:00:34.3]} 43... a3 {[%clk 0:00:11.5]} 44. g4 {[%clk 0:00:34.4]} 44... Ke5
{[%clk 0:00:11.3]} 45. g5 {[%clk 0:00:33.8]} 45... Kf5 {[%clk 0:00:11]} 0-1

[Event "Early-Titled-Tuesday-Blitz-June-18-2024"]
[Site "Chess.com"]
[Date "2024.06.18"]
[Round "5"]
[White "Abund"]
[Black "KorolDimitriy75"]
[Result "1-0"]
[WhiteElo "2735"]
[BlackElo "2529"]
[TimeControl "180+1"]
[EndTime "8:58:12 PDT"]
[Termination "Abund won on time"]

1. e4 {[%clk 0:02:57.4]} 1... c5 {[%clk 0:03:00.1]} 2. Nf3 {[%clk 0:02:57]} 2...
d6 {[%clk 0:03:00.3]} 3. Bb5+ {[%clk 0:02:56.3]} 3... Nd7 {[%clk 0:03:00.1]} 4.
a4 {[%clk 0:02:55.7]} 4... Nf6 {[%clk 0:02:59.5]} 5. d3 {[%clk 0:02:53]} 5... g6
{[%clk 0:02:58.8]} 6. a5 {[%clk 0:02:53.3]} 6... Bg7 {[%clk 0:02:58.1]} 7. a6
{[%clk 0:02:52.3]} 7... bxa6 {[%clk 0:02:57.4]} 8. Bxa6 {[%clk 0:02:52.8]} 8...
Bxa6 {[%clk 0:02:58.1]} 9. Rxa6 {[%clk 0:02:53.7]} 9... O-O {[%clk 0:02:58.1]}
10. O-O {[%clk 0:02:52.8]} 10... Nb8 {[%clk 0:02:53.5]} 11. Ra4 {[%clk
0:02:51.7]} 11... Nc6 {[%clk 0:02:53.4]} 12. b3 {[%clk 0:02:48.9]} 12... Nd7
{[%clk 0:02:50.7]} 13. Nbd2 {[%clk 0:02:36.7]} 13... Nb6 {[%clk 0:02:46.8]} 14.
Ra3 {[%clk 0:02:24.6]} 14... a5 {[%clk 0:02:45.7]} 15. Nc4 {[%clk 0:02:22.5]}
15... Nxc4 {[%clk 0:02:22.1]} 16. dxc4 {[%clk 0:02:23.4]} 16... Qb6 {[%clk
0:01:54.6]} 17. Ra4 {[%clk 0:02:22.9]} 17... Rfb8 {[%clk 0:01:37.3]} 18. Bd2
{[%clk 0:02:20]} 18... Qb7 {[%clk 0:00:52.6]} 19. Qe2 {[%clk 0:02:19.1]} 19...
Qc7 {[%clk 0:00:47.5]} 20. h3 {[%clk 0:02:17.7]} 20... Nd4 {[%clk 0:00:37.1]}
21. Nxd4 {[%clk 0:02:15.2]} 21... Bxd4 {[%clk 0:00:38]} 22. Qe1 {[%clk
0:02:11.6]} 22... Qc6 {[%clk 0:00:21.8]} 23. Kh1 {[%clk 0:01:54.2]} 23... Ra6
{[%clk 0:00:18.5]} 24. f4 {[%clk 0:01:49.4]} 24... Rba8 {[%clk 0:00:17.6]} 25.
Qe2 {[%clk 0:01:47.1]} 25... Kg7 {[%clk 0:00:15.7]} 26. f5 {[%clk 0:01:47.2]}
26... Be5 {[%clk 0:00:14]} 27. Bg5 {[%clk 0:01:47.2]} 27... f6 {[%clk
0:00:12.6]} 28. Bd2 {[%clk 0:01:46.7]} 28... g5 {[%clk 0:00:12.2]} 29. Qg4
{[%clk 0:01:39]} 29... h6 {[%clk 0:00:10.9]} 30. Qh5 {[%clk 0:01:39.1]} 30...
Qe8 {[%clk 0:00:08.5]} 31. Qe2 {[%clk 0:01:38.8]} 31... Qf7 {[%clk 0:00:07.1]}
32. Qe1 {[%clk 0:01:34.7]} 32... Qe8 {[%clk 0:00:06.1]} 33. Bxa5 {[%clk
0:01:33.6]} 33... Qh5 {[%clk 0:00:05.5]} 34. Rf3 {[%clk 0:01:14.3]} 34... Qh4
{[%clk 0:00:05.4]} 35. Qd2 {[%clk 0:00:38.5]} 35... Qxe4 {[%clk 0:00:04.9]} 36.
Rf1 {[%clk 0:00:39.2]} 36... Qc6 {[%clk 0:00:02.8]} 37. Re1 {[%clk 0:00:20]}
37... Qe8 {[%clk 0:00:01.2]} 38. Bc3 {[%clk 0:00:11.8]} 1-0

[Event "Early-Titled-Tuesday-Blitz-June-18-2024"]
[Site "Chess.com"]
[Date "2024.06.18"]
[Round "5"]
[White "A4RookA3"]
[Black "gabduschew"]
[Result "1-0"]
[WhiteElo "2444"]
[BlackElo "2303"]
[TimeControl "180+1"]
[EndTime "8:58:13 PDT"]
[Termination "A4RookA3 won on time"]

1. d4 {[%clk 0:03:00.9]} 1... Nf6 {[%clk 0:02:55]} 2. Nc3 {[%clk 0:03:00.5]}
2... d5 {[%clk 0:02:51.3]} 3. Bf4 {[%clk 0:03:00.4]} 3... a6 {[%clk 0:02:50.8]}
4. e3 {[%clk 0:03:00.2]} 4... c5 {[%clk 0:02:47]} 5. dxc5 {[%clk 0:02:58.4]}
5... Nc6 {[%clk 0:02:46.6]} 6. a3 {[%clk 0:02:56.9]} 6... e5 {[%clk 0:02:39.2]}
7. Bg5 {[%clk 0:02:54.9]} 7... d4 {[%clk 0:02:06.8]} 8. Ne4 {[%clk 0:02:41.6]}
8... Bf5 {[%clk 0:02:04.2]} 9. Ng3 {[%clk 0:02:08.5]} 9... Bg6 {[%clk
0:01:56.9]} 10. b4 {[%clk 0:02:07]} 10... h6 {[%clk 0:01:34.5]} 11. Bh4 {[%clk
0:01:43]} 11... Be7 {[%clk 0:00:58.9]} 12. Nf3 {[%clk 0:01:34.3]} 12... dxe3
{[%clk 0:00:45.8]} 13. Qxd8+ {[%clk 0:01:35.2]} 13... Rxd8 {[%clk 0:00:46]} 14.
fxe3 {[%clk 0:01:32.9]} 14... Bxc2 {[%clk 0:00:44.7]} 15. Bxf6 {[%clk
0:01:10.6]} 15... Bxf6 {[%clk 0:00:44.9]} 16. e4 {[%clk 0:01:11.1]} 16... h5
{[%clk 0:00:30.5]} 17. h4 {[%clk 0:01:01.8]} 17... Nd4 {[%clk 0:00:21.8]} 18.
Ra2 {[%clk 0:00:21.6]} 18... Nxf3+ {[%clk 0:00:20.1]} 19. gxf3 {[%clk
0:00:22.5]} 19... Ba4 {[%clk 0:00:15.6]} 20. Nf5 {[%clk 0:00:18.3]} 20... O-O
{[%clk 0:00:09.5]} 21. Be2 {[%clk 0:00:11.8]} 21... g6 {[%clk 0:00:08]} 22. Ne3
{[%clk 0:00:12]} 22... Bc6 {[%clk 0:00:07.8]} 23. Rd2 {[%clk 0:00:10.2]} 23...
Rxd2 {[%clk 0:00:07.3]} 24. Kxd2 {[%clk 0:00:11.1]} 24... Rd8+ {[%clk
0:00:07.9]} 25. Kc2 {[%clk 0:00:11.8]} 25... Kf8 {[%clk 0:00:07.8]} 26. Bc4
{[%clk 0:00:10.9]} 26... Ke7 {[%clk 0:00:07.3]} 27. Bd5 {[%clk 0:00:11.3]} 27...
Bg7 {[%clk 0:00:05.6]} 28. Rg1 {[%clk 0:00:06.9]} 28... Ba4+ {[%clk 0:00:05.5]}
29. Kc3 {[%clk 0:00:06.9]} 29... Bc6 {[%clk 0:00:06.4]} 30. Kc4 {[%clk
0:00:06.8]} 30... Bf6 {[%clk 0:00:05.9]} 31. Rh1 {[%clk 0:00:06.2]} 31... Bg7
{[%clk 0:00:06.1]} 32. Kb3 {[%clk 0:00:06]} 32... Bf6 {[%clk 0:00:04.3]} 33. a4
{[%clk 0:00:06.5]} 33... Bg7 {[%clk 0:00:01.9]} 34. Rd1 {[%clk 0:00:03.4]} 34...
Bh6 {[%clk 0:00:01.9]} 35. Nc4 {[%clk 0:00:03.4]} 35... Bxd5 {[%clk 0:00:01.8]}
36. exd5 {[%clk 0:00:04.3]} 1-0

[Event "Early-Titled-Tuesday-Blitz-June-18-2024"]
[Site "Chess.com"]
[Date "2024.06.18"]
[Round "5"]
[White "karinachess1"]
[Black "Zohid6"]
[Result "0-1"]
[WhiteElo "2659"]
[BlackElo "2977"]
[TimeControl "180+1"]
[EndTime "8:58:14 PDT"]
[Termination "Zohid6 won on time"]

1. d4 {[%clk 0:03:00.9]} 1... e6 {[%clk 0:02:58.8]} 2. c4 {[%clk 0:03:00.3]}
2... d5 {[%clk 0:02:58.8]} 3. Nc3 {[%clk 0:03:00.4]} 3... c6 {[%clk 0:02:59.1]}
4. cxd5 {[%clk 0:02:54.7]} 4... exd5 {[%clk 0:02:58.8]} 5. Nf3 {[%clk
0:02:54.1]} 5... Nf6 {[%clk 0:02:58.1]} 6. Bg5 {[%clk 0:02:53.8]} 6... Bf5
{[%clk 0:02:56.8]} 7. e3 {[%clk 0:02:53.1]} 7... Nbd7 {[%clk 0:02:53.8]} 8. Bd3
{[%clk 0:02:52.6]} 8... Bxd3 {[%clk 0:02:53.9]} 9. Qxd3 {[%clk 0:02:53.5]} 9...
h6 {[%clk 0:02:54.2]} 10. Bh4 {[%clk 0:02:53.4]} 10... Be7 {[%clk 0:02:54.3]}
11. O-O {[%clk 0:02:53.3]} 11... O-O {[%clk 0:02:54.2]} 12. a3 {[%clk
0:02:53.4]} 12... a5 {[%clk 0:02:54.1]} 13. Rab1 {[%clk 0:02:51.8]} 13... Ne4
{[%clk 0:02:48]} 14. Nxe4 {[%clk 0:02:38.8]} 14... Bxh4 {[%clk 0:02:45.8]} 15.
Nxh4 {[%clk 0:02:36.6]} 15... Qxh4 {[%clk 0:02:46.7]} 16. Ng3 {[%clk 0:02:30.5]}
16... a4 {[%clk 0:02:35.3]} 17. h3 {[%clk 0:02:21.6]} 17... Rfe8 {[%clk
0:02:32.4]} 18. Rbe1 {[%clk 0:02:00.5]} 18... Ra6 {[%clk 0:02:02.1]} 19. Re2
{[%clk 0:01:53.2]} 19... Rb6 {[%clk 0:01:59.8]} 20. Qc3 {[%clk 0:01:46.5]} 20...
Rb3 {[%clk 0:01:52.7]} 21. Qa5 {[%clk 0:01:43]} 21... Nb6 {[%clk 0:01:52.7]} 22.
Rc1 {[%clk 0:01:15.5]} 22... Qe7 {[%clk 0:01:36.2]} 23. Nf1 {[%clk 0:01:00.7]}
23... Ra8 {[%clk 0:01:31.7]} 24. Qe1 {[%clk 0:00:58.5]} 24... Nc4 {[%clk
0:01:31.2]} 25. Nd2 {[%clk 0:00:47.2]} 25... Rxb2 {[%clk 0:01:16.8]} 26. Nxc4
{[%clk 0:00:42.1]} 26... Rxe2 {[%clk 0:01:13.5]} 27. Qxe2 {[%clk 0:00:43]} 27...
dxc4 {[%clk 0:01:13.5]} 28. Qb2 {[%clk 0:00:41.8]} 28... b5 {[%clk 0:01:13.3]}
29. Qc3 {[%clk 0:00:36.5]} 29... Rd8 {[%clk 0:01:11.5]} 30. Rb1 {[%clk
0:00:33.5]} 30... f5 {[%clk 0:01:10.9]} 31. g3 {[%clk 0:00:26.5]} 31... Qe4
{[%clk 0:01:09.7]} 32. Rc1 {[%clk 0:00:22]} 32... h5 {[%clk 0:01:03.3]} 33. h4
{[%clk 0:00:22.1]} 33... Kh7 {[%clk 0:01:01.9]} 34. Qb4 {[%clk 0:00:22.4]} 34...
Rg8 {[%clk 0:00:57.5]} 35. Qd6 {[%clk 0:00:18.6]} 35... g5 {[%clk 0:00:56.2]}
36. hxg5 {[%clk 0:00:14.6]} 36... Rxg5 {[%clk 0:00:52.4]} 37. Kh2 {[%clk
0:00:09.6]} 37... h4 {[%clk 0:00:49.2]} 38. Qc7+ {[%clk 0:00:06.7]} 38... Rg7
{[%clk 0:00:48.7]} 39. Qf4 {[%clk 0:00:07.2]} 39... hxg3+ {[%clk 0:00:48.4]} 40.
fxg3 {[%clk 0:00:08.1]} 40... Qxf4 {[%clk 0:00:47]} 41. gxf4 {[%clk 0:00:09]}
41... Re7 {[%clk 0:00:43.8]} 42. Rc3 {[%clk 0:00:08.5]} 42... Kg6 {[%clk
0:00:44.2]} 43. Kg3 {[%clk 0:00:08.9]} 43... Kf6 {[%clk 0:00:44.3]} 44. Kf3
{[%clk 0:00:09.4]} 44... Rh7 {[%clk 0:00:41.3]} 45. Kg2 {[%clk 0:00:08.2]} 45...
Ke6 {[%clk 0:00:41.1]} 46. Rc1 {[%clk 0:00:07.7]} 46... Kd5 {[%clk 0:00:41]} 47.
Kf3 {[%clk 0:00:02.3]} 47... Rh3+ {[%clk 0:00:40.6]} 48. Kf2 {[%clk 0:00:02.6]}
48... Ke4 {[%clk 0:00:40.4]} 49. Rc3 {[%clk 0:00:02]} 49... Rh2+ {[%clk
0:00:38.3]} 50. Kf1 {[%clk 0:00:02]} 50... Rd2 {[%clk 0:00:37.1]} 51. Ke1 {[%clk
0:00:02]} 51... Rd3 {[%clk 0:00:37]} 0-1

[Event "Early-Titled-Tuesday-Blitz-June-18-2024"]
[Site "Chess.com"]
[Date "2024.06.18"]
[Round "5"]
[White "LeninGuerra"]
[Black "NailBashirli"]
[Result "0-1"]
[WhiteElo "2539"]
[BlackElo "2741"]
[TimeControl "180+1"]
[EndTime "8:58:14 PDT"]
[Termination "NailBashirli won by resignation"]

1. e4 {[%clk 0:03:00.9]} 1... Nf6 {[%clk 0:02:59.1]} 2. e5 {[%clk 0:02:57.6]}
2... Nd5 {[%clk 0:02:50.5]} 3. c4 {[%clk 0:02:57.6]} 3... Nb6 {[%clk 0:02:49.3]}
4. a4 {[%clk 0:02:57.8]} 4... a5 {[%clk 0:02:45.4]} 5. d4 {[%clk 0:02:57.6]}
5... d6 {[%clk 0:02:45.6]} 6. exd6 {[%clk 0:02:57.4]} 6... exd6 {[%clk
0:02:45.4]} 7. Ra3 {[%clk 0:02:57.6]} 7... Be7 {[%clk 0:02:45.2]} 8. Rg3 {[%clk
0:02:57.5]} 8... O-O {[%clk 0:02:42.5]} 9. Nf3 {[%clk 0:02:57.7]} 9... Bf6
{[%clk 0:02:37.1]} 10. Be2 {[%clk 0:02:57.6]} 10... Nc6 {[%clk 0:02:36.5]} 11.
Kf1 {[%clk 0:02:57.3]} 11... Ne7 {[%clk 0:02:36.2]} 12. Nc3 {[%clk 0:02:41.1]}
12... Nf5 {[%clk 0:02:34.5]} 13. Bd3 {[%clk 0:02:41.4]} 13... g6 {[%clk
0:02:15.2]} 14. Qc2 {[%clk 0:02:32.6]} 14... Nxg3+ {[%clk 0:02:10.7]} 15. hxg3
{[%clk 0:02:33.5]} 15... d5 {[%clk 0:02:08.2]} 16. c5 {[%clk 0:02:31.6]} 16...
Nd7 {[%clk 0:02:02.2]} 17. Nxd5 {[%clk 0:02:29.5]} 17... Bg7 {[%clk 0:01:55.2]}
18. Ng5 {[%clk 0:01:56.8]} 18... c6 {[%clk 0:01:41.7]} 19. Nc3 {[%clk
0:01:40.3]} 19... Nf6 {[%clk 0:01:41.5]} 20. Nf3 {[%clk 0:01:40.3]} 20... Bg4
{[%clk 0:01:34.6]} 21. Be3 {[%clk 0:01:32.4]} 21... Nd5 {[%clk 0:01:26]} 22.
Nxd5 {[%clk 0:01:29.8]} 22... Qxd5 {[%clk 0:01:26.9]} 23. Ne5 {[%clk 0:01:23.4]}
23... Bxe5 {[%clk 0:01:22.4]} 24. dxe5 {[%clk 0:01:24.3]} 24... Rad8 {[%clk
0:01:19.8]} 25. Rh4 {[%clk 0:01:03.7]} 25... h5 {[%clk 0:01:12.3]} 26. Rxg4
{[%clk 0:00:31]} 26... hxg4 {[%clk 0:01:11.3]} 27. Be2 {[%clk 0:00:24.7]} 27...
Qxe5 {[%clk 0:01:09.8]} 28. Bxg4 {[%clk 0:00:23.1]} 28... Rd5 {[%clk 0:01:07.3]}
29. Bf3 {[%clk 0:00:22.2]} 29... Rd7 {[%clk 0:01:06.4]} 30. g4 {[%clk
0:00:21.9]} 30... Rfd8 {[%clk 0:01:05.7]} 31. g3 {[%clk 0:00:22.3]} 31... Rd3
{[%clk 0:01:03.1]} 32. Bf4 {[%clk 0:00:21.3]} 32... Qe6 {[%clk 0:00:43.1]} 33.
Be2 {[%clk 0:00:20.6]} 33... Qe4 {[%clk 0:00:42.3]} 34. Bxd3 {[%clk 0:00:17.2]}
34... Qxd3+ {[%clk 0:00:42.2]} 35. Qxd3 {[%clk 0:00:17]} 35... Rxd3 {[%clk
0:00:43.1]} 36. Ke2 {[%clk 0:00:17.2]} 36... Rb3 {[%clk 0:00:41.5]} 37. Be5
{[%clk 0:00:17.5]} 37... Rb4 {[%clk 0:00:41.4]} 38. g5 {[%clk 0:00:16.2]} 38...
Rxa4 {[%clk 0:00:41.7]} 39. Kd3 {[%clk 0:00:16.4]} 39... Rb4 {[%clk 0:00:40.6]}
40. Bc3 {[%clk 0:00:16.6]} 40... Ra4 {[%clk 0:00:40]} 41. b3 {[%clk 0:00:13.9]}
41... Ra2 {[%clk 0:00:39.3]} 42. Kc4 {[%clk 0:00:14.4]} 42... a4 {[%clk
0:00:39.1]} 43. bxa4 {[%clk 0:00:14.4]} 43... Rxa4+ {[%clk 0:00:40]} 44. Kd3
{[%clk 0:00:14]} 44... Kf8 {[%clk 0:00:39.1]} 45. Bd4 {[%clk 0:00:14.4]} 45...
Ke7 {[%clk 0:00:39.3]} 46. Be3 {[%clk 0:00:15]} 46... Ke6 {[%clk 0:00:39.7]} 47.
f3 {[%clk 0:00:13.8]} 47... Kd5 {[%clk 0:00:40.2]} 48. g4 {[%clk 0:00:13.8]}
48... Rb4 {[%clk 0:00:40]} 49. f4 {[%clk 0:00:13.9]} 49... Rb3+ {[%clk
0:00:40.3]} 50. Ke2 {[%clk 0:00:13.4]} 50... Ke4 {[%clk 0:00:40.5]} 51. Bd2
{[%clk 0:00:13.4]} 51... Rb2 {[%clk 0:00:39.6]} 52. Ke1 {[%clk 0:00:09.1]} 52...
Kf3 {[%clk 0:00:39.4]} 53. f5 {[%clk 0:00:08.3]} 53... Rb1+ {[%clk 0:00:39.2]}
54. Bc1 {[%clk 0:00:07.9]} 54... Rxc1+ {[%clk 0:00:38.9]} 55. Kd2 {[%clk
0:00:08.8]} 0-1